fUSD/lending_fUSD_20250720
["ID","MTS","AMOUNT","RATE_DAILY","PERIOD"]
[373378610,1752977432380,-500.0,0.00018638,2]
[373378612,1752977432390,-534.06110321,0.00018638,2]
[373378614,1752977432399,-600.0,0.00018638,2]
[373378616,1752977432409,-372.18968164,0.00018638,2]
[373378618,1752977432419,-151.0,0.00018638,2]
[373378620,1752977432428,-151.0,0.00018638,2]
[373378622,1752977432438,-151.0,0.00018638,2]
[373378624,1752977432447,-171.09648114,0.00018638,2]
[373378626,1752977432456,-600.0,0.00018638,2]
[373378628,1752977432466,-600.0,0.00018638,2]
[373378630,1752977432477,-600.0,0.00018638,2]
[373378632,1752977432487,-600.0,0.00018638,2]
[373378634,1752977432496,-600.0,0.00018638,2]
[373378636,1752977432505,-600.0,0.00018638,2]
[373378638,1752977432514,-600.0,0.00018638,2]
[373378640,1752977432524,-600.0,0.00018638,2]
[373378642,1752977432533,-600.0,0.00018638,2]
[373378644,1752977432543,-600.0,0.00018638,2]
[373378646,1752977432553,-425.63762156,0.00018638,2]
[373378648,1752977432563,-2245.07748366,0.00018649,2]
[373378650,1752977432574,-2825.41313023,0.00018649,2]
[373378653,1752977432591,-402.64725884,0.00018649,2]
[373378655,1752977432602,-1085.69761749,0.00018649,2]
[373378659,1752977432628,-425.14450978,0.00018649,2]
[373378661,1752977432637,-453.0,0.0001878,2]
[373378663,1752977432647,-282.30272341,0.00018881,2]
[373378665,1752977432656,-200.0,0.00018888,2]
[373378667,1752977432666,-282.30272341,0.00018897,2]
[373378669,1752977432675,-200.0,0.00018913,2]
[373378671,1752977432684,-282.30272341,0.00018945,2]
[373378673,1752977432694,-200.0,0.00018965,2]
[373378675,1752977432703,-993.61962174,0.00019,2]
[373378677,1752977432712,-794.94303145,0.00019078,2]
[373378679,1752977432722,-169.81914257,0.00019078,2]
[373378681,1752977432731,-150.92181613,0.00019078,2]
[373378683,1752977432740,-716.0195,0.00019078,2]
[373378685,1752977432749,-168.0,0.0001908,2]
[373378687,1752977432760,-165.88294431,0.00019086,2]
[373378689,1752977432770,-486.40288415,0.00019124,2]
[373378691,1752977432780,-300.0,0.0001914,2]
[373378693,1752977432793,-250.0,0.0001914,2]
[373378695,1752977432805,-504.00425149,0.00019177,2]
[373378697,1752977432814,-474.80780679,0.00019177,2]
[373378699,1752977432824,-495.89587166,0.00019178,2]
[373378701,1752977432833,-300.0,0.00019178,2]
[373378703,1752977432842,-151.0,0.00019178,2]
[373378705,1752977432852,-151.0,0.00019178,2]
[373378707,1752977432862,-480.0,0.00019178,2]
[373378709,1752977432871,-474.50298302,0.00019178,2]
[373378711,1752977432882,-480.0,0.00019178,2]
[373378713,1752977432891,-480.0,0.00019178,2]
[373378715,1752977432901,-489.17,0.00019178,2]
[373378717,1752977432910,-129.95746779,0.00019178,2]
[373378720,1752977432923,-350.04253221,0.00019178,2]
[373378722,1752977432932,-480.0,0.00019178,2]
[373378724,1752977432942,-480.0,0.00019178,2]
[373378726,1752977432951,-480.0,0.00019178,2]
[373378728,1752977432959,-480.0,0.00019178,2]
[373378730,1752977432969,-480.0,0.00019178,2]
[373378732,1752977432978,-480.0,0.00019178,2]
[373378734,1752977432987,-480.0,0.00019178,2]
[373378736,1752977432995,-480.0,0.00019178,2]
[373378738,1752977433005,-6.00160167,0.00019178,2]
[373378741,1752977433037,-452.45706685,0.00019178,2]
[373378744,1752977433049,-21.54133148,0.00019178,2]
[373378745,1752977433058,-480.0,0.00019178,2]
[373378747,1752977433076,-480.0,0.00019178,2]
[373378750,1752977433086,-480.0,0.00019178,2]
[373378751,1752977433096,-486.22,0.00019178,2]
[373378753,1752977433105,-480.0,0.00019178,2]
[373378755,1752977433114,-480.0,0.00019178,2]
[373378757,1752977433124,-480.0,0.00019178,2]
[373378759,1752977433133,-480.0,0.00019178,2]
[373378761,1752977433142,-480.0,0.00019178,2]
[373378763,1752977433152,-480.0,0.00019178,2]
[373378765,1752977433162,-480.0,0.00019178,2]
[373378767,1752977433171,-480.0,0.00019178,2]
[373378769,1752977433180,-157.42174254,0.00019178,2]
[373378771,1752977433190,-480.0,0.00019178,2]
[373378773,1752977433199,-392.15732638,0.00019178,2]
[373378775,1752977433211,-70.03103474,0.00019178,2]
[373378778,1752977433221,-467.47546721,0.00019178,2]
[373378779,1752977433234,-480.0,0.00019178,2]
[373378781,1752977433244,-480.0,0.00019178,2]
[373378783,1752977433253,-480.0,0.00019178,2]
[373378785,1752977433263,-480.0,0.00019178,2]
[373378787,1752977433274,-480.0,0.00019178,2]
[373378789,1752977433284,-480.0,0.00019178,2]
[373378791,1752977433294,-480.0,0.00019178,2]
[373378793,1752977433306,-480.0,0.00019178,2]
[373378795,1752977433317,-715.61,0.00019178,2]
[373378797,1752977433328,-453.01074995,0.00019178,2]
[373378799,1752977433338,-480.0,0.00019178,2]
[373378801,1752977433348,-480.0,0.00019178,2]
[373378803,1752977433358,-480.0,0.00019178,2]
[373378805,1752977433368,-466.80237278,0.00019178,2]
[373378807,1752977433378,-480.0,0.00019178,2]
[373378809,1752977433388,-752.02,0.00019178,2]
[373378811,1752977433398,-480.0,0.00019178,2]
[373378813,1752977433407,-480.0,0.00019178,2]
[373378815,1752977433416,-480.0,0.00019178,2]
[373378817,1752977433426,-564.53,0.00019178,2]
[373378819,1752977433435,-480.0,0.00019178,2]
[373378821,1752977433444,-480.0,0.00019178,2]
[373378823,1752977433454,-500.0,0.00019178,2]
[373378825,1752977433464,-500.0,0.00019178,2]
[373378827,1752977433474,-500.0,0.00019178,2]
[373378829,1752977433484,-500.0,0.00019178,2]
[373378831,1752977433494,-500.0,0.00019178,2]
[373378833,1752977433504,-563.3859753,0.00019178,2]
[373378835,1752977433514,-480.0,0.00019178,2]
[373378837,1752977433524,-480.0,0.00019178,2]
[373378839,1752977433534,-480.0,0.00019178,2]
[373378841,1752977433543,-480.0,0.00019178,2]
[373378843,1752977433553,-480.0,0.00019178,2]
[373378845,1752977433563,-480.0,0.00019178,2]
[373378847,1752977433573,-404.77849383,0.00019178,2]
[373378849,1752977433583,-508.61,0.00019178,2]
[373378851,1752977433592,-480.0,0.00019178,2]
[373378853,1752977433602,-480.0,0.00019178,2]
[373378855,1752977433610,-675.02,0.00019178,2]
[373378857,1752977433620,-316.93832,0.00019178,2]
[373378859,1752977433634,-163.06168,0.00019178,2]
[373378861,1752977433644,-480.0,0.00019178,2]
[373378863,1752977433653,-480.0,0.00019178,2]
[373378865,1752977433663,-480.0,0.00019178,2]
[373378867,1752977433672,-480.0,0.00019178,2]
[373378869,1752977433682,-480.0,0.00019178,2]
[373378871,1752977433692,-480.0,0.00019178,2]
[373378873,1752977433701,-480.0,0.00019178,2]
[373378875,1752977433711,-476.93074003,0.00019178,2]
[373378878,1752977433727,-3.06925997,0.00019178,2]
[373378880,1752977433737,-480.0,0.00019178,2]
[373378882,1752977433746,-480.0,0.00019178,2]
[373378884,1752977433756,-462.93747147,0.00019178,2]
[373378886,1752977433766,-482.2,0.00019178,2]
[373378888,1752977433775,-480.0,0.00019178,2]
[373378890,1752977433785,-480.0,0.00019178,2]
[373378892,1752977433795,-480.0,0.00019178,2]
[373378894,1752977433805,-2120.59,0.00019178,2]
[373378896,1752977433815,-480.0,0.00019178,2]
[373378898,1752977433825,-591.6,0.00019178,2]
[373378900,1752977433834,-480.0,0.00019178,2]
[373378902,1752977433844,-496.45111719,0.00019178,2]
[373378904,1752977433855,-480.0,0.00019178,2]
[373378906,1752977433864,-480.0,0.00019178,2]
[373378908,1752977433874,-480.0,0.00019178,2]
[373378910,1752977433884,-480.0,0.00019178,2]
[373378912,1752977433893,-480.0,0.00019178,2]
[373378914,1752977433903,-480.0,0.00019178,2]
[373378916,1752977433913,-474.92636034,0.00019178,2]
[373378919,1752977433930,-5.07363966,0.00019178,2]
[373378921,1752977433939,-480.0,0.00019178,2]
[373378923,1752977433949,-480.0,0.00019178,2]
[373378925,1752977433959,-219.89919546,0.00019178,2]
[373378927,1752977433969,-749.71,0.00019178,2]
[373378929,1752977433979,-480.0,0.00019178,2]
[373378931,1752977433988,-208.326513,0.00019178,2]
[373378933,1752977433998,-480.0,0.00019178,2]
[373378935,1752977434008,-480.0,0.00019178,2]
[373378937,1752977434017,-480.0,0.00019178,2]
[373378939,1752977434027,-480.0,0.00019178,2]
[373378941,1752977434036,-480.0,0.00019178,2]
[373378943,1752977434046,-480.0,0.00019178,2]
[373378945,1752977434057,-480.0,0.00019178,2]
[373378947,1752977434066,-480.0,0.00019178,2]
[373378949,1752977434076,-480.0,0.00019178,2]
[373378951,1752977434086,-221.80333415,0.00019178,2]
[373378953,1752977434095,-480.0,0.00019178,2]
[373378955,1752977434104,-228.334015,0.00019178,2]
[373378957,1752977434114,-300.258666,0.00019178,2]
[373378959,1752977434124,-480.0,0.00019178,2]
[373378961,1752977434133,-480.0,0.00019178,2]
[373378963,1752977434142,-624.62,0.00019178,2]
[373378965,1752977434152,-480.0,0.00019178,2]
[373378967,1752977434161,-480.0,0.00019178,2]
[373378969,1752977434172,-21.97463673,0.00019178,2]
[373378972,1752977434184,-458.02536327,0.00019178,2]
[373378974,1752977434193,-70.48893673,0.00019178,2]
[373378976,1752977434205,-276.0,0.00019178,2]
[373378978,1752977434216,-133.51106327,0.00019178,2]
[373378980,1752977434227,-480.0,0.00019178,2]
[373378982,1752977434239,-1184.46,0.00019178,2]
[373378984,1752977434249,-473.778191,0.00019178,2]
[373378986,1752977434258,-480.0,0.00019178,2]
[373378988,1752977434268,-480.0,0.00019178,2]
[373378990,1752977434279,-480.0,0.00019178,2]
[373378992,1752977434289,-1179.05,0.00019178,2]
[373378994,1752977434301,-474.84864084,0.00019178,2]
[373378996,1752977434312,-213.72437197,0.00019178,2]
[373378997,1752977434325,-266.27562803,0.00019178,2]
[373378998,1752977434335,-480.0,0.00019178,2]
[373378999,1752977434345,-663.92,0.00019178,2]
[373379000,1752977434356,-474.38650812,0.00019178,2]
[373379001,1752977434366,-480.0,0.00019178,2]
[373379002,1752977434376,-480.0,0.00019178,2]
[373379003,1752977434386,-480.0,0.00019178,2]
[373379004,1752977434397,-480.0,0.00019178,2]
[373379005,1752977434407,-480.0,0.00019178,2]
[373379006,1752977434417,-480.0,0.00019178,2]
[373379007,1752977434427,-480.0,0.00019178,2]
[373379008,1752977434437,-13.41786385,0.00019178,2]
[373379010,1752977434450,-541.74213615,0.00019178,2]
[373379011,1752977434461,-480.0,0.00019178,2]
[373379013,1752977434471,-480.0,0.00019178,2]
[373379015,1752977434481,-44.42005956,0.00019178,2]
[373379017,1752977434494,-435.57994044,0.00019178,2]
[373379019,1752977434504,-288.118197,0.00019178,2]
[373379021,1752977434514,-480.0,0.00019178,2]
[373379023,1752977434524,-480.0,0.00019178,2]
[373379025,1752977434534,-372.62061034,0.00019178,2]
[373379027,1752977434546,-107.37938966,0.00019178,2]
[373379029,1752977434558,-480.0,0.00019178,2]
[373379031,1752977434568,-480.0,0.00019178,2]
[373379033,1752977434578,-523.14,0.00019178,2]
[373379035,1752977434589,-480.0,0.00019178,2]
[373379037,1752977434598,-480.0,0.00019178,2]
[373379039,1752977434608,-819.94,0.00019178,2]
[373379041,1752977434618,-480.0,0.00019178,2]
[373379043,1752977434628,-503.28295103,0.00019178,2]
[373379045,1752977434637,-480.0,0.00019178,2]
[373379047,1752977434647,-480.0,0.00019178,2]
[373379049,1752977434656,-480.0,0.00019178,2]
[373379051,1752977434665,-480.0,0.00019178,2]
[373379053,1752977434674,-480.0,0.00019178,2]
[373379055,1752977434683,-480.0,0.00019178,2]
[373379057,1752977434693,-11.86172393,0.00019178,2]
[373379059,1752977434711,-468.13827607,0.00019178,2]
[373379061,1752977434720,-480.0,0.00019178,2]
[373379063,1752977434730,-480.0,0.00019178,2]
[373379065,1752977434740,-480.0,0.00019178,2]
[373379067,1752977434749,-480.0,0.00019178,2]
[373379069,1752977434759,-494.52,0.00019178,2]
[373379071,1752977434769,-480.0,0.00019178,2]
[373379073,1752977434778,-480.0,0.00019178,2]
[373379075,1752977434787,-480.0,0.00019178,2]
[373379078,1752977434798,-480.0,0.00019178,2]
[373379079,1752977434811,-480.0,0.00019178,2]
[373379081,1752977434821,-613.84172393,0.00019178,2]
[373379387,1752977437846,-49.17827607,0.00019178,2]
[373379389,1752977437855,-480.0,0.00019178,2]
[373379391,1752977437865,-1159.37,0.00019178,2]
[373379393,1752977437874,-480.0,0.00019178,2]
[373379395,1752977437883,-480.0,0.00019178,2]
[373379420,1752977438102,-103.29363619,0.00019178,2]
[373379422,1752977438116,-376.70636381,0.00019178,2]
[373379424,1752977438125,-610.85,0.00019178,2]
[373379425,1752977438135,-480.0,0.00019178,2]
[373379426,1752977438144,-480.0,0.00019178,2]
[373379427,1752977438153,-2076.87,0.00019178,2]
[373379428,1752977438162,-480.0,0.00019178,2]
[373379429,1752977438172,-506.70068704,0.00019178,2]
[373379430,1752977438181,-886.58,0.00019178,2]
[373379431,1752977438191,-480.0,0.00019178,2]
[373379432,1752977438200,-480.0,0.00019178,2]
[373379433,1752977438209,-480.0,0.00019178,2]
[373379434,1752977438218,-366.39547232,0.00019178,2]
[373379435,1752977438234,-138.30895725,0.00019178,2]
[373379436,1752977438243,-480.0,0.00019178,2]
[373379437,1752977438252,-166.82728723,0.00019178,2]
[373379440,1752977438378,-313.17271277,0.00019178,2]
[373379442,1752977438387,-480.0,0.00019178,2]
[373379444,1752977438396,-480.0,0.00019178,2]
[373379446,1752977438406,-480.0,0.00019178,2]
[373379448,1752977438415,-464.40687984,0.00019178,2]
[373379450,1752977438424,-500.0,0.00019178,2]
[373379452,1752977438433,-165.15,0.00019178,2]
[373379454,1752977438442,-615.02,0.00019178,2]
[373379456,1752977438452,-480.0,0.00019178,2]
[373379458,1752977438461,-480.0,0.00019178,2]
[373379460,1752977438470,-480.0,0.00019178,2]
[373379462,1752977438479,-546.22870782,0.00019178,2]
[373379464,1752977438488,-480.0,0.00019178,2]
[373379466,1752977438498,-480.0,0.00019178,2]
[373379468,1752977438507,-491.50165796,0.00019178,2]
[373379470,1752977438516,-470.0,0.00019178,2]
[373379472,1752977438525,-480.0,0.00019178,2]
[373379474,1752977438534,-2132.97,0.00019178,2]
[373379476,1752977438543,-480.0,0.00019178,2]
[373379478,1752977438553,-236.84760215,0.00019178,2]
[373379480,1752977438562,-600.30606866,0.00019178,2]
[373379482,1752977438574,-676.62393134,0.00019178,2]
[373379484,1752977438583,-517.27606866,0.00019178,2]
[373379486,1752977438594,-427.94393134,0.00019178,2]
[373379487,1752977438603,-518.53,0.00019178,2]
[373379489,1752977438613,-480.0,0.00019178,2]
[373379491,1752977438622,-362.14423295,0.00019178,2]
[373379493,1752977438631,-480.0,0.00019178,2]
[373379495,1752977438641,-171.86024417,0.00019178,2]
[373379497,1752977438650,-480.0,0.00019178,2]
[373379499,1752977438659,-480.0,0.00019178,2]
[373379501,1752977438668,-480.0,0.00019178,2]
[373379503,1752977438677,-480.0,0.00019178,2]
[373379505,1752977438686,-870.61,0.00019178,2]
[373379507,1752977438696,-456.23435645,0.00019178,2]
[373379509,1752977438706,-480.0,0.00019178,2]
[373379511,1752977438715,-480.0,0.00019178,2]
[373379513,1752977438724,-480.0,0.00019178,2]
[373379515,1752977438734,-480.0,0.00019178,2]
[373379517,1752977438743,-480.0,0.00019178,2]
[373379519,1752977438753,-480.0,0.00019178,2]
[373379521,1752977438762,-480.0,0.00019178,2]
[373379523,1752977438771,-480.0,0.00019178,2]
[373379525,1752977438780,-480.0,0.00019178,2]
[373379527,1752977438789,-2380.14,0.00019178,2]
[373379529,1752977438799,-475.08534068,0.00019178,2]
[373379531,1752977438809,-504.49,0.00019178,2]
[373379533,1752977438818,-480.0,0.00019178,2]
[373379535,1752977438828,-480.0,0.00019178,2]
[373379537,1752977438838,-480.0,0.00019178,2]
[373379538,1752977438847,-480.0,0.00019178,2]
[373379540,1752977438856,-901.69314039,0.00019178,2]
[373379543,1752977438868,-198.53685961,0.00019178,2]
[373379545,1752977438877,-480.0,0.00019178,2]
[373379547,1752977438887,-429.86314039,0.00019178,2]
[373379551,1752977438923,-54.74685961,0.00019178,2]
[373379553,1752977438932,-502.54,0.00019178,2]
[373379555,1752977438941,-480.0,0.00019178,2]
[373379557,1752977438950,-873.1,0.00019178,2]
[373379559,1752977438960,-798.61,0.00019178,2]
[373379561,1752977438969,-349.32576809,0.00019178,2]
[373379563,1752977438978,-480.0,0.00019178,2]
[373379565,1752977438987,-480.0,0.00019178,2]
[373379567,1752977438996,-480.0,0.00019178,2]
[373379569,1752977439006,-536.45,0.00019178,2]
[373379571,1752977439015,-480.0,0.00019178,2]
[373379573,1752977439024,-480.0,0.00019178,2]
[373379575,1752977439033,-480.0,0.00019178,2]
[373379577,1752977439042,-538.62,0.00019178,2]
[373379579,1752977439051,-480.0,0.00019178,2]
[373379581,1752977439060,-642.5,0.00019178,2]
[373379583,1752977439070,-480.0,0.00019178,2]
[373379585,1752977439079,-1007.28,0.00019178,2]
[373379586,1752977439088,-480.0,0.00019178,2]
[373379588,1752977439097,-247.8669832,0.00019178,2]
[373379591,1752977439108,-232.1330168,0.00019178,2]
[373379593,1752977439117,-451.07968491,0.00019178,2]
[373379595,1752977439128,-1247.05674392,0.00019178,2]
[373379597,1752977439139,-182.73357117,0.00019178,2]
[373379599,1752977439148,-430.0,0.00019178,2]
[373379601,1752977439157,-174.63272121,0.00019178,2]
[373379704,1752977440275,-353.98727879,0.00019178,2]
[373379706,1752977440284,-480.0,0.00019178,2]
[373379708,1752977440293,-352.47323411,0.00019178,2]
[373379714,1752977440344,-385.68020396,0.00019178,2]
[373379716,1752977440356,-261.84656193,0.00019178,2]
[373379718,1752977440365,-480.0,0.00019178,2]
[373379720,1752977440374,-480.0,0.00019178,2]
[373379722,1752977440383,-480.0,0.00019178,2]
[373379724,1752977440392,-504.28893467,0.00019178,2]
[373379728,1752977440427,-178.1106,0.000174,2]
[373379731,1752977440437,-240.44708,0.00019178,2]
[373379735,1752977440448,-73.50398533,0.00019178,2]
[373379738,1752977440457,-900.22,0.00019178,2]
[373379740,1752977440466,-555.11,0.00019178,2]
[373379742,1752977440475,-480.0,0.00019178,2]
[373379744,1752977440484,-480.0,0.00019178,2]
[373379746,1752977440493,-480.0,0.00019178,2]
[373379748,1752977440502,-480.0,0.00019178,2]
[373379750,1752977440511,-1041.02,0.00019178,2]
[373379753,1752977440520,-675.22,0.00019178,2]
[373379755,1752977440529,-480.0,0.00019178,2]
[373379757,1752977440539,-480.0,0.00019178,2]
[373379758,1752977440548,-618.22,0.00019178,2]
[373379760,1752977440557,-1071.58,0.00019178,2]
[373379762,1752977440566,-480.0,0.00019178,2]
[373379764,1752977440576,-480.0,0.00019178,2]
[373379766,1752977440585,-1606.71,0.00019178,2]
[373379768,1752977440594,-480.0,0.00019178,2]
[373379770,1752977440603,-2392.22,0.00019178,2]
[373379772,1752977440612,-480.0,0.00019178,2]
[373379774,1752977440621,-636.2,0.00019178,2]
[373379776,1752977440630,-1271.49,0.00019178,2]
[373379777,1752977440639,-480.0,0.00019178,2]
[373379779,1752977440648,-579.98,0.00019178,2]
[373379781,1752977440657,-753.65,0.00019178,2]
[373379783,1752977440666,-998.48,0.00019178,2]
[373379785,1752977440676,-480.0,0.00019178,2]
[373379787,1752977440685,-480.0,0.00019178,2]
[373379789,1752977440694,-931.9,0.00019178,2]
[373379791,1752977440703,-480.0,0.00019178,2]
[373379793,1752977440712,-480.0,0.00019178,2]
[373379795,1752977440721,-711.68,0.00019178,2]
[373379797,1752977440731,-480.0,0.00019178,2]
[373379799,1752977440744,-374.13164495,0.00019178,2]
[373379801,1752977440753,-598.62,0.00019178,2]
[373379803,1752977440763,-480.0,0.00019178,2]
[373379805,1752977440772,-1200.17,0.00019178,2]
[373379807,1752977440781,-983.44,0.00019178,2]
[373379809,1752977440790,-453.73012911,0.00019178,2]
[373379811,1752977440799,-480.0,0.00019178,2]
[373379812,1752977440808,-480.0,0.00019178,2]
[373379814,1752977440817,-981.84,0.00019178,2]
[373379816,1752977440827,-519.9,0.00019178,2]
[373379818,1752977440836,-480.0,0.00019178,2]
[373379820,1752977440845,-480.0,0.00019178,2]
[373379822,1752977440854,-1041.5446301,0.00019178,2]
[373379827,1752977440890,-265.3853699,0.00019178,2]
[373379828,1752977440900,-586.53461842,0.00019178,2]
[373379830,1752977440911,-107.22538158,0.00019178,2]
[373379832,1752977440920,-355.1146247,0.00019178,2]
[373379836,1752977440943,-124.8853753,0.00019178,2]
[373379838,1752977440952,-668.88,0.00019178,2]
[373379840,1752977440962,-480.0,0.00019178,2]
[373379842,1752977440971,-508.08188274,0.00019178,2]
[373380038,1752977442875,-109.00811726,0.00019178,2]
[373380041,1752977442885,-480.0,0.00019178,2]
[373380043,1752977442894,-917.12,0.00019178,2]
[373380045,1752977442903,-1255.98,0.00019178,2]
[373380047,1752977442912,-480.0,0.00019178,2]
[373380049,1752977442921,-501.45,0.00019178,2]
[373380051,1752977442930,-480.0,0.00019178,2]
[373380053,1752977442939,-480.0,0.00019178,2]
[373380054,1752977442949,-592.58,0.00019178,2]
[373380056,1752977442958,-439.57454573,0.00019178,2]
[373380058,1752977442967,-480.0,0.00019178,2]
[373380060,1752977442976,-4759.17,0.00019178,2]
[373380062,1752977442985,-1720.07,0.00019178,2]
[373380064,1752977442995,-2093.61,0.00019178,2]
[373380066,1752977443004,-500.0,0.00019178,2]
[373380068,1752977443013,-1138.46,0.00019178,2]
[373380070,1752977443022,-480.0,0.00019178,2]
[373380072,1752977443031,-480.0,0.00019178,2]
[373380074,1752977443040,-480.0,0.00019178,2]
[373380076,1752977443049,-480.0,0.00019178,2]
[373380079,1752977443059,-480.0,0.00019178,2]
[373380082,1752977443068,-719.13,0.00019178,2]
[373380085,1752977443077,-483.81,0.00019178,2]
[373380087,1752977443086,-480.0,0.00019178,2]
[373380089,1752977443096,-775.41,0.00019178,2]
[373380091,1752977443105,-1092.45,0.00019178,2]
[373380093,1752977443115,-733.6,0.00019178,2]
[373380095,1752977443124,-1928.13,0.00019178,2]
[373380097,1752977443133,-1205.75,0.00019178,2]
[373380099,1752977443142,-480.0,0.00019178,2]
[373380101,1752977443151,-480.0,0.00019178,2]
[373380103,1752977443161,-1261.46,0.00019178,2]
[373380105,1752977443170,-493.85,0.00019178,2]
[373380107,1752977443179,-927.44,0.00019178,2]
[373380109,1752977443189,-593.0,0.00019178,2]
[373380111,1752977443198,-480.0,0.00019178,2]
[373380113,1752977443207,-1772.42,0.00019178,2]
[373380115,1752977443216,-480.0,0.00019178,2]
[373380117,1752977443225,-480.0,0.00019178,2]
[373380143,1752977443457,-1139.54,0.00019178,2]
[373380145,1752977443467,-773.32,0.00019178,2]
[373380147,1752977443476,-1334.28,0.00019178,2]
[373380149,1752977443485,-501.72467646,0.00019178,2]
[373380151,1752977443495,-882.94,0.00019178,2]
[373380153,1752977443505,-5314.89,0.00019178,2]
[373380155,1752977443514,-1600.89,0.00019178,2]
[373380157,1752977443523,-480.0,0.00019178,2]
[373380159,1752977443532,-480.0,0.00019178,2]
[373380161,1752977443542,-480.0,0.00019178,2]
[373380163,1752977443551,-904.4,0.00019178,2]
[373380165,1752977443560,-480.0,0.00019178,2]
[373380167,1752977443569,-395.65817948,0.00019178,2]
[373380170,1752977443591,-1391.55182052,0.00019178,2]
[373380172,1752977443600,-648.82,0.00019178,2]
[373380174,1752977443609,-480.0,0.00019178,2]
[373380176,1752977443618,-2117.45651816,0.00019178,2]
[373380179,1752977443631,-896.89348184,0.00019178,2]
[373380181,1752977443640,-480.0,0.00019178,2]
[373380182,1752977443649,-480.0,0.00019178,2]
[373380184,1752977443659,-465.0,0.00019178,2]
[373380186,1752977443668,-480.0,0.00019178,2]
[373380188,1752977443677,-480.0,0.00019178,2]
[373380190,1752977443687,-480.0,0.00019178,2]
[373380192,1752977443696,-480.0,0.00019178,2]
[373380194,1752977443704,-1863.99,0.00019178,2]
[373380196,1752977443713,-480.0,0.00019178,2]
[373380198,1752977443723,-1542.79,0.00019178,2]
[373380200,1752977443732,-480.0,0.00019178,2]
[373380202,1752977443741,-480.0,0.00019178,2]
[373380204,1752977443750,-702.42,0.00019178,2]
[373380206,1752977443760,-648.96,0.00019178,2]
[373380208,1752977443769,-480.0,0.00019178,2]
[373380210,1752977443778,-480.0,0.00019178,2]
[373380212,1752977443787,-480.0,0.00019178,2]
[373380214,1752977443796,-480.0,0.00019178,2]
[373380216,1752977443805,-618.25,0.00019178,2]
[373380218,1752977443816,-469.53717219,0.00019178,2]
[373380220,1752977443826,-674.9,0.00019178,2]
[373380222,1752977443835,-340.13910226,0.00019178,2]
[373380224,1752977443844,-502.91,0.00019178,2]
[373380226,1752977443853,-2822.45,0.00019178,2]
[373380228,1752977443862,-1455.17,0.00019178,2]
[373380230,1752977443872,-1335.0,0.00019178,2]
[373380232,1752977443881,-480.0,0.00019178,2]
[373380234,1752977443891,-340.87093807,0.00019178,2]
[373380236,1752977443900,-480.0,0.00019178,2]
[373380238,1752977443910,-2828.21,0.00019178,2]
[373380240,1752977443919,-142.95500262,0.00019178,2]
[373380464,1752977445950,-200.0,0.00018373,2]
[373380466,1752977445959,-337.04499738,0.00019178,2]
[373380468,1752977445969,-764.24,0.00019178,2]
[373380470,1752977445978,-646.85,0.00019178,2]
[373380472,1752977445987,-480.0,0.00019178,2]
[373380474,1752977445996,-480.0,0.00019178,2]
[373380477,1752977446006,-632.57530054,0.00019178,2]